[Event "World Junior U20 Open 2018"]
[Site "Gebze"]
[Date "2018.09.08"]
[Round "5.47"]
[White "Schekachikhin, Maksim"]
[Black "Aydincelebi, Kagan"]
[Result "1/2-1/2"]
[ECO "D24"]
[WhiteElo "2356"]
[BlackElo "2060"]
[Annotator "NA"]
[PlyCount "142"]
[EventDate "2018.09.05"]
[EventType "swiss"]
[EventCountry "TUR"]
[SourceTitle "playchess.com"]
[Source "ChessBase"]
[SourceQuality "1"]
[TimeControl "40/5400+30:1800+30"]

1. d4 {[%emt 0:00:30]} d5 {[%emt 0:00:30]} 2. Nf3 {[%emt 0:01:30]} Nf6 {[%emt 0:00:00]} 3. c4 {[%emt 0:00:00]} dxc4 {[%emt 0:00:00]} 4. Nc3 {[%emt 0:03:00]} a6 {[%emt 0:02:30]} 5. e4 {[%emt 0:01:30]} e6 {[%emt 0:00:30]} 6. Bxc4 {[%emt 0:04:30] D24: Queen's Gambit Accepted: 3 Nf3 Nf6 4 Nc3} b5 {[%emt 0:00:30]} 7. Bd3 {[%emt 0:00:30]} Bb7 {[%emt 0:00:30]} 8. Bg5 {[%emt 0:03:30]} (8. Qe2 Nbd7 9. O-O c5 10. e5 Nd5 11. Ne4 cxd4 12. Bg5 Qb8 13. a3 h6 {½-½ (92) Esipenko,A (2564)-Mamedyarov,S (2799) Moscow 2017}) 8... Be7 {[%emt 0:00:00]} 9. O-O {[%emt 0:00:30]} Nbd7 {[%emt 0:00:00]} 10. Rc1 $146 {[%emt 0:10:30]} ({Predecessor:} 10. Qe2 h6 11. Bf4 c5 12. Rad1 cxd4 13. Nxd4 Qb6 {½-½ (13) Toth,P (2120)-Neber,Z (2083) Hungary 2002}) 10... h6 {[%emt 0:07:30]} 11. Bh4 {[%emt 0:06:30]} b4 {[%emt 0:02:30]} 12. Na4 {[%emt 0:03:30]} Bxe4 {[%emt 0:02:30]} 13. Bxe4 {[%emt 0:02:30]} Nxe4 {[%emt 0:00:30]} 14. Bxe7 {[%emt 0:00:30]} Qxe7 {[%emt 0:00:30]} 15. Rxc7 {[%emt 0:00:30]} Qd6 {[%emt 0:02:30]} 16. Rxd7 {[%emt 0:16:30]} Qxd7 {[%emt 0:17:30]} 17. Nb6 {[%emt 0:01:30]} Qb7 {[%emt 0:00:30]} 18. Qa4+ {[%emt 0:02:30]} Ke7 {[%emt 0:00:30]} 19. Nxa8 {[%emt 0:06:30]} Rxa8 {[%emt 0:00:00]} 20. Rc1 {[%emt 0:00:30]} a5 {[%emt 0:04:30]} 21. Ne5 {[%emt 0:02:00]} Rc8 {[%emt 0:02:30]} 22. Rc6 {[%emt 0:05:30]} f6 {[%emt 0:09:30]} 23. Qc2 {[%emt 0:03:30]} Nd6 {[%emt 0:01:30]} 24. Qc5 {[%emt 0:04:30]} Rxc6 {[%emt 0:00:30]} 25. Nxc6+ {[%emt 0:00:30]} Kd7 {[%emt 0:00:30]} 26. Nxa5 {[%emt 0:01:35]} Qe4 {[%emt 0:00:30]} 27. h3 {[%emt 0:03:15]} Nf5 {[%emt 0:00:30]} 28. Qb5+ {[%emt 0:00:30]} Kc7 {[%emt 0:02:30]} 29. Qc5+ {[%emt 0:05:44]} Kd7 {[%emt 0:00:30]} 30. Qa7+ {[%emt 0:03:35]} Kc8 {[%emt 0:04:00]} 31. Qa6+ {[%emt 0:00:39]} Kc7 {[%emt 0:02:30]} 32. Qc4+ {[%emt 0:01:23]} Kd7 {[%emt 0:00:30]} 33. Nb3 {[%emt 0:02:16]} Qe1+ {[%emt 0:01:30]} 34. Qf1 {[%emt 0:02:09]} Qxf1+ {[%emt 0:00:30]} 35. Kxf1 {[%emt 0:00:07]} Kd6 {[%emt 0:00:30]} 36. Ke2 {[%emt 0:00:29]} Kd5 {[%emt 0:00:00]} 37. Kd3 {[%emt 0:00:14]} Nd6 {[%emt 0:01:00]} 38. Nc5 $18 {[%emt 0:04:03]} e5 39. dxe5 fxe5 40. Na6 e4+ 41. Kc2 Kc4 42. g4 g6 43. Nc7 Nf7 44. b3+ Kc5 45. Kd2 {[%emt 1:31:30]} Ng5 {[%emt 2:19:22]} 46. Na6+ {[%emt 0:00:30]} Kd4 {[%emt 0:00:30]} 47. Nxb4 {[%emt 0:00:30]} Nxh3 {[%emt 0:00:30]} 48. Nc2+ {[%emt 0:00:30]} Ke5 {[%emt 0:00:30]} 49. Ke3 {[%emt 0:00:30]} Nf4 {[%emt 0:00:30]} 50. Nb4 {[%emt 0:00:30]} Ng2+ {[%emt 0:00:30]} 51. Ke2 {[%emt 0:00:30]} Nf4+ {[%emt 0:00:30]} 52. Kf1 {[%emt 0:00:30]} Kd4 {[%emt 0:00:30]} 53. Nc6+ {[%emt 0:00:30]} Kc5 {[%emt 0:00:30]} 54. Ne5 {[%emt 0:00:30]} Kb4 {[%emt 0:00:30]} 55. Nc4 {[%emt 0:00:30]} h5 {[%emt 0:00:30]} 56. gxh5 {[%emt 0:00:30]} gxh5 {[%emt 0:00:30]} 57. Nd2 {[%emt 0:00:00]} Ka3 {[%emt 0:01:30]} 58. Nxe4 {[%emt 0:00:00]} Kxa2 {[%emt 0:00:30]} 59. b4 {[%emt 0:00:30]} Kb3 {[%emt 0:00:30]} 60. b5 {[%emt 0:00:30]} Nd5 {[%emt 0:00:30]} 61. Ng3 {[%emt 0:00:30]} Kb4 {[%emt 0:00:30]} 62. Nxh5 {[%emt 0:00:30]} Kxb5 {[%emt 0:00:30]} 63. Ke2 {[%emt 0:00:00]} Kc4 {[%emt 0:01:14]} 64. Kf3 {[%emt 0:00:00]} Kd4 {[%emt 0:00:30]} 65. Kg4 {[%emt 0:00:30]} Ke4 {[%emt 0:00:57]} 66. Ng3+ {[%emt 0:00:30]} Ke5 {[%emt 0:00:30]} 67. Ne2 {[%emt 0:00:00]} Nf6+ {[%emt 0:00:25]} 68. Kh3 {[%emt 0:00:00]} Ne4 {[%emt 0:00:00]} 69. f4+ {[%emt 0:00:00]} Kf5 {[%emt 0:00:00]} 70. Kh4 {[%emt 0:00:00]} Nc3 {[%emt 0:00:00]} 71. Nxc3 {[%emt 0:00:30]} Kxf4 {[%emt 0:00:28]} 1/2-1/2

[Event "World Junior U20 Open 2018"]
[Site "Gebze"]
[Date "2018.09.08"]
[Round "5.48"]
[White "Sawlin, Leonid"]
[Black "Liyanage, Ranindu Dilshan"]
[Result "1/2-1/2"]
[ECO "B15"]
[WhiteElo "2355"]
[BlackElo "1989"]
[Annotator "NA"]
[PlyCount "69"]
[EventDate "2018.09.05"]
[EventType "swiss"]
[EventCountry "TUR"]
[SourceTitle "playchess.com"]
[Source "ChessBase"]
[SourceQuality "1"]
[TimeControl "40/5400+30:1800+30"]

1. e4 {[%emt 0:00:30]} c6 {[%emt 0:00:30]} 2. d4 {[%emt 0:00:00]} d5 {[%emt 0:00:30]} 3. f3 {[%emt 0:00:00]} g6 {[%emt 0:01:30]} 4. Nc3 {[%emt 0:08:30]} Bg7 {[%emt 0:02:30]} 5. Be3 {[%emt 0:00:00]} dxe4 {[%emt 0:04:30]} 6. fxe4 {[%emt 0:00:00]} Nf6 {[%emt 0:13:30]} 7. Nf3 {[%emt 0:00:30]} O-O {[%emt 0:01:30]} 8. Qd2 {[%emt 0:11:30] B15: Caro-Kann: 3 Nc3: 3...g6 and 3...dxe4 4 Nxe4 Nf6 5 Nxf6+ exf6} b5 {[%emt 0:18:30]} (8... Ng4 9. Bg5 h6 10. Bh4 c5 11. Nd5 Nf6 12. Nxf6+ exf6 13. O-O-O cxd4 14. Nxd4 Qe8 15. Re1 Nc6 {1-0 (51) Saptarshi,R (2476)-Nomin Erdene,D (2356) Backi Petrovac 2018}) 9. e5 {[%emt 0:09:30]} Nd5 {[%emt 0:11:30]} 10. Bh6 {[%emt 0:00:30]} Nxc3 {[%emt 0:00:30]} 11. bxc3 {[%emt 0:05:30]} Bf5 $146 {[%emt 0:03:30]} ({Predecessor:} 11... Bg4 12. Bd3 b4 13. Bxg7 Kxg7 14. O-O bxc3 15. Qxc3 Bxf3 16. Rxf3 {1-0 (56) Odinaev,T (2267)-Konyshev,A (2290) Kemerovo 2007}) 12. Bxg7 {[%emt 0:27:30]} Kxg7 {[%emt 0:01:30]} 13. Bd3 {[%emt 0:00:00]} Bxd3 {[%emt 0:05:30]} 14. cxd3 {[%emt 0:00:00]} Qd5 {[%emt 0:00:30]} 15. Qe2 {[%emt 0:00:30]} Nd7 {[%emt 0:00:30]} 16. O-O {[%emt 0:00:30]} Nb6 {[%emt 0:00:30]} 17. Rac1 {[%emt 0:00:30]} h6 {[%emt 0:00:30]} 18. c4 {[%emt 0:00:30]} Qe6 {[%emt 0:00:30]} 19. d5 {[%emt 0:00:30]} cxd5 {[%emt 0:05:30]} 20. Nd4 {[%emt 0:11:30]} Qc8 {[%emt 0:00:30]} 21. cxb5 {[%emt 0:07:07]} Qb7 $18 {[%emt 0:02:30]} 22. Rf3 {[%emt 0:05:21]} e6 {[%emt 0:01:30]} 23. Qe3 {[%emt 0:04:48]} Qe7 {[%emt 0:00:30]} 24. Rf6 {[%emt 0:05:04]} Rac8 {[%emt 0:06:37]} 25. Rcf1 {[%emt 0:00:46]} Nd7 {[%emt 0:00:00]} 26. h4 {[%emt 0:01:23]} Qc5 {[%emt 0:01:02]} 27. Rxf7+ {[%emt 0:00:06]} Rxf7 {[%emt 0:00:10]} 28. Nxe6+ {[%emt 0:00:01]} Kg8 {[%emt 0:00:15]} 29. Nxc5 {[%emt 0:00:04]} Nxc5 {[%emt 0:00:12]} 30. Rc1 {[%emt 0:00:32]} Rfc7 {[%emt 0:00:30]} 31. Qxh6 {[%emt 0:00:02]} Kf7 {[%emt 0:00:12]} 32. d4 {[%emt 0:01:39]} Ne6 {[%emt 0:00:02]} 33. Qh7+ {[%emt 0:00:14]} Ng7 {[%emt 0:00:04]} 34. Rf1+ {[%emt 0:00:00]} Ke8 {[%emt 0:00:30]} 35. Qg8+ {[%emt 0:00:00]} 1/2-1/2

[Event "World Junior U20 Open 2018"]
[Site "Gebze"]
[Date "2018.09.08"]
[Round "5.49"]
[White "Wadsworth, Matthew J"]
[Black "Kilic, Gokturk Kagan"]
[Result "1-0"]
[ECO "D77"]
[WhiteElo "2351"]
[BlackElo "1910"]
[Annotator "NA"]
[PlyCount "79"]
[EventDate "2018.09.05"]
[EventType "swiss"]
[EventCountry "TUR"]
[SourceTitle "playchess.com"]
[Source "ChessBase"]
[SourceQuality "1"]
[TimeControl "40/5400+30:1800+30"]

1. Nf3 {[%emt 0:00:30]} Nf6 {[%emt 0:01:30]} 2. g3 {[%emt 0:00:00]} g6 {[%emt 0:00:30]} 3. Bg2 {[%emt 0:00:00]} Bg7 {[%emt 0:00:30]} 4. O-O {[%emt 0:00:30]} O-O {[%emt 0:01:30]} 5. c4 {[%emt 0:00:00]} e6 {[%emt 0:03:30]} 6. Nc3 {[%emt 0:05:00]} d5 {[%emt 0:02:30]} 7. d4 {[%emt 0:01:30]} Nbd7 {[%emt 0:04:30]} 8. b3 {[%emt 0:03:30] D77: Fianchetto Grünfeld: 6 0-0: Replies other than 6...c6} b6 {[%emt 0:14:30]} 9. Ba3 $146 {[%emt 0:03:30]} ({Predecessor:} 9. cxd5 exd5 10. Bb2 Bb7 11. e3 Re8 12. Rc1 Ne4 13. Qc2 Nxc3 14. Bxc3 a5 15. Rfd1 Nf6 {1-0 (73) Eljanov,P (2717)-Grandelius,N (2647) Berlin 2015}) 9... Re8 {[%emt 0:04:30]} 10. Nd2 {[%emt 0:05:30]} Bb7 {[%emt 0:11:30]} 11. Rc1 {[%emt 0:02:30]} a6 {[%emt 0:08:30]} 12. e4 {[%emt 0:07:30]} dxe4 {[%emt 0:06:30]} 13. Ndxe4 {[%emt 0:00:30]} Nxe4 {[%emt 0:01:30]} 14. Nxe4 {[%emt 0:00:30]} Rb8 {[%emt 0:05:30]} 15. d5 {[%emt 0:15:30]} Nf6 {[%emt 0:04:30]} 16. Nxf6+ {[%emt 0:08:30]} Qxf6 {[%emt 0:01:30]} 17. Qd3 {[%emt 0:07:30]} Rbd8 {[%emt 0:04:30]} 18. Rfd1 {[%emt 0:02:30]} a5 {[%emt 0:05:00]} 19. Rc2 {[%emt 0:01:30]} Bc8 {[%emt 0:05:57]} 20. Bb2 {[%emt 0:04:30]} Qe7 {[%emt 0:00:28]} 21. Bxg7 {[%emt 0:00:30]} Kxg7 {[%emt 0:00:12]} 22. Re2 {[%emt 0:00:30]} Qf6 {[%emt 0:00:57]} 23. Rde1 {[%emt 0:01:30]} Rd6 {[%emt 0:01:26]} 24. Qc2 $11 {[%emt 0:02:30]} Red8 {[%emt 0:01:22]} 25. h4 {[%emt 0:01:30]} Bb7 {[%emt 0:05:05]} 26. dxe6 {[%emt 0:04:30]} Bxg2 {[%emt 0:00:40]} 27. Kxg2 {[%emt 0:00:30]} fxe6 {[%emt 0:01:50]} 28. Qe4 {[%emt 0:01:30]} Rf8 {[%emt 0:00:56]} 29. Qe3 {[%emt 0:02:46]} h5 {[%emt 0:01:47]} 30. Rd2 {[%emt 0:01:46]} Rfd8 {[%emt 0:00:51]} 31. Rxd6 {[%emt 0:00:35]} Rxd6 {[%emt 0:00:05]} 32. c5 {[%emt 0:05:19]} Rc6 {[%emt 0:00:38]} 33. cxb6 {[%emt 0:03:04]} cxb6 {[%emt 0:00:45]} 34. Rd1 {[%emt 0:00:07]} Rc3 {[%emt 0:00:46]} 35. Rd7+ {[%emt 0:00:45]} Kg8 {[%emt 0:00:52]} 36. Qe4 {[%emt 0:00:02]} Rc8 {[%emt 0:00:00]} 37. Rd6 {[%emt 0:00:40]} Re8 {[%emt 0:00:43]} 38. Rxb6 {[%emt 0:00:43]} Qf5 {[%emt 0:00:08]} 39. Qxf5 {[%emt 0:00:40]} gxf5 {[%emt 0:00:06]} 40. Ra6 {[%emt 0:00:00]} 1-0

[Event "World Junior U20 Open 2018"]
[Site "Gebze"]
[Date "2018.09.08"]
[Round "5.50"]
[White "Nyambileg, Erdene-Ochir"]
[Black "Shailesh, Dravid"]
[Result "1/2-1/2"]
[ECO "A50"]
[WhiteElo "1798"]
[BlackElo "2325"]
[Annotator "NA"]
[PlyCount "102"]
[EventDate "2018.09.05"]
[EventType "swiss"]
[EventCountry "TUR"]
[SourceTitle "playchess.com"]
[Source "ChessBase"]
[SourceQuality "1"]
[TimeControl "40/5400+30:1800+30"]

1. d4 {[%emt 0:00:30]} Nf6 {[%emt 0:00:30]} 2. c4 {[%emt 0:00:00]} g6 {[%emt 0:00:00]} 3. Nc3 {[%emt 0:00:00]} Bg7 {[%emt 0:00:00]} 4. Nf3 {[%emt 0:00:30]} O-O {[%emt 0:00:30]} 5. g3 {[%emt 0:00:30]} b6 {[%emt 0:00:30]} 6. Bg2 {[%emt 0:00:30]} Bb7 {[%emt 0:00:30]} 7. O-O {[%emt 0:00:30]} Ne4 {[%emt 0:02:30]} 8. Qc2 {[%emt 0:13:30]} Nxc3 {[%emt 0:00:30]} 9. bxc3 {[%emt 0:00:30]} Nc6 {[%emt 0:01:30] A50: Queen's Fianchetto Defence (1 d4 Nf6 2 c4 b6)} 10. Rd1 {[%emt 0:16:30]} d6 $146 {[%emt 0:01:30]} ({Predecessor:} 10... Na5 11. c5 d6 12. Rb1 dxc5 13. e4 cxd4 14. cxd4 Qd7 15. Bf4 Qc6 16. Qxc6 Bxc6 17. d5 {0-1 (31) Molner,M (2493)-Ipatov,A (2625) Saint Louis 2013}) 11. Bb2 {[%emt 0:06:30]} Qc8 {[%emt 0:01:30]} 12. c5 {[%emt 0:06:30]} Na5 {[%emt 0:01:30]} 13. Qa4 {[%emt 0:10:30]} Bc6 {[%emt 0:04:30]} 14. Qb4 {[%emt 0:02:30]} Qa6 {[%emt 0:00:30]} 15. cxd6 {[%emt 0:01:30]} cxd6 {[%emt 0:01:30]} 16. Bf1 {[%emt 0:07:30]} Bb5 {[%emt 0:01:30]} 17. Re1 {[%emt 0:01:30]} Rac8 {[%emt 0:01:30]} 18. a4 {[%emt 0:02:30]} Bc4 {[%emt 0:00:30]} 19. Nd2 {[%emt 0:00:30]} Bh6 {[%emt 0:02:30]} 20. Nxc4 {[%emt 0:01:30]} Nxc4 {[%emt 0:01:30]} 21. e4 {[%emt 0:01:30]} Rc7 {[%emt 0:01:30]} 22. e5 {[%emt 0:10:26]} d5 {[%emt 0:04:30]} 23. e6 {[%emt 0:03:00]} f6 {[%emt 0:01:30]} 24. a5 {[%emt 0:00:52]} b5 {[%emt 0:01:30]} 25. Bxc4 {[%emt 0:03:04]} bxc4 {[%emt 0:00:30]} 26. Re2 {[%emt 0:01:00]} Rfc8 {[%emt 0:00:30]} 27. Ba3 {[%emt 0:01:00]} Rb7 {[%emt 0:03:30]} 28. Qa4 {[%emt 0:00:19]} Qc6 {[%emt 0:02:30]} 29. Qxc6 {[%emt 0:01:45]} Rxc6 {[%emt 0:00:30]} 30. Bb4 {[%emt 0:00:23]} Kf8 {[%emt 0:00:30]} 31. Kg2 {[%emt 0:00:35]} Ke8 {[%emt 0:00:30]} 32. f4 {[%emt 0:01:04]} f5 {[%emt 0:01:30]} 33. Raa2 {[%emt 0:01:29]} Bg7 {[%emt 0:00:30]} 34. Rab2 {[%emt 0:00:12]} a6 {[%emt 0:03:30]} 35. Bc5 {[%emt 0:02:33]} Rxb2 {[%emt 0:03:30]} 36. Rxb2 {[%emt 0:00:07]} Rxe6 {[%emt 0:00:30]} 37. Kf2 {[%emt 0:01:06]} Bf6 {[%emt 0:00:30]} 38. Rb8+ {[%emt 0:00:30]} Kf7 {[%emt 0:00:00]} 39. Rd8 {[%emt 0:00:11]} g5 {[%emt 0:00:00]} 40. Rxd5 {[%emt 0:01:13]} gxf4 {[%emt 0:00:00]} 41. Rxf5 {[%emt 0:00:11]} fxg3+ {[%emt 0:01:00]} 42. hxg3 {[%emt 0:00:30]} Kg6 {[%emt 0:01:30] [#]} 43. Rd5 $14 {[%emt 0:03:30]} Bg5 {[%emt 0:09:30]} 44. Bb4 {[%emt 0:00:30]} Bd2 {[%emt 0:01:30]} 45. Rc5 {[%emt 0:02:30]} Be1+ {[%emt 0:00:30]} 46. Kf3 {[%emt 0:01:30]} Rf6+ {[%emt 0:00:30]} 47. Kg4 {[%emt 0:00:30]} Re6 {[%emt 0:03:30]} 48. Rxc4 {[%emt 0:05:30]} h5+ {[%emt 0:00:00]} 49. Kh3 {[%emt 0:01:30]} Re3 {[%emt 0:01:00]} 50. Rc6+ {[%emt 0:00:30]} Kf5 {[%emt 0:00:00]} 51. Rc5+ {[%emt 0:02:30]} Kg6 {[%emt 0:00:00]} 1/2-1/2

[Event "World Junior U20 Open 2018"]
[Site "Gebze"]
[Date "2018.09.08"]
[Round "5.55"]
[White "Yaran, Siar"]
[Black "Nikolovski, Nikola"]
[Result "0-1"]
[ECO "B50"]
[WhiteElo "2271"]
[BlackElo "2388"]
[Annotator "NA"]
[PlyCount "74"]
[EventDate "2018.09.05"]
[EventType "swiss"]
[EventCountry "TUR"]
[SourceTitle "playchess.com"]
[Source "ChessBase"]
[SourceQuality "1"]
[TimeControl "40/5400+30:1800+30"]

1. e4 {[%emt 0:00:30]} c5 {[%emt 0:01:30]} 2. Nf3 {[%emt 0:00:30]} d6 {[%emt 0:00:00]} 3. c3 {[%emt 0:00:30]} Nf6 {[%emt 0:01:00]} 4. Be2 {[%emt 0:00:30]} Nbd7 {[%emt 0:01:30]} 5. d3 {[%emt 0:00:30]} b6 {[%emt 0:03:30]} 6. O-O {[%emt 0:00:00]} Bb7 {[%emt 0:00:30]} 7. Nbd2 {[%emt 0:00:00]} g6 {[%emt 0:01:30]} 8. Re1 {[%emt 0:02:30]} Bg7 {[%emt 0:00:30]} 9. Bf1 {[%emt 0:01:30]} O-O {[%emt 0:02:30]} 10. a3 {[%emt 0:00:00]} Qc7 {[%emt 0:04:30]} 11. b3 {[%emt 0:01:00]} e5 {[%emt 0:06:30]} 12. Bb2 {[%emt 0:00:30]} d5 {[%emt 0:05:30]} 13. Qc2 {[%emt 0:01:30]} Rae8 {[%emt 0:11:30]} 14. Rac1 {[%emt 0:03:30]} Nh5 {[%emt 0:07:30]} 15. exd5 {[%emt 0:09:30]} Bxd5 {[%emt 0:00:30]} 16. d4 {[%emt 0:00:30]} Bc6 {[%emt 0:15:30]} 17. b4 {[%emt 0:12:30]} Re7 {[%emt 0:06:30]} 18. dxc5 {[%emt 0:02:30]} bxc5 {[%emt 0:00:30]} 19. Ne4 {[%emt 0:00:00]} Kh8 {[%emt 0:04:30]} 20. Nfd2 {[%emt 0:05:00]} f5 {[%emt 0:01:30]} 21. Nxc5 {[%emt 0:00:30]} Nxc5 {[%emt 0:01:30]} 22. bxc5 {[%emt 0:00:30]} Nf4 {[%emt 0:00:00]} 23. Nc4 {[%emt 0:04:30]} Ba8 {[%emt 0:01:00]} 24. a4 {[%emt 0:05:30]} Qc6 {[%emt 0:05:15]} 25. Ne3 {[%emt 0:00:30]} Nh3+ {[%emt 0:04:17]} 26. Kh1 {[%emt 0:00:30]} f4 {[%emt 0:00:09]} 27. Nd1 {[%emt 0:00:30]} e4 {[%emt 0:03:37]} 28. c4 {[%emt 0:08:30]} e3 {[%emt 0:09:07]} 29. Bxg7+ {[%emt 0:08:30]} Kxg7 {[%emt 0:00:32]} 30. fxe3 {[%emt 0:00:30]} fxe3 {[%emt 0:00:30]} 31. Nxe3 {[%emt 0:00:30]} Nf2+ {[%emt 0:00:30]} 32. Kg1 {[%emt 0:00:30]} Nh3+ {[%emt 0:00:30]} 33. Kh1 {[%emt 0:00:30]} Nf2+ {[%emt 0:00:30]} 34. Kg1 {[%emt 0:00:30]} Qxc5 {[%emt 0:00:30]} 35. Qc3+ {[%emt 0:00:30]} Kg8 {[%emt 0:00:30]} 36. Rc2 {[%emt 0:00:30]} Ng4 {[%emt 0:00:14]} 37. Rce2 {[%emt 0:01:30]} Rfe8 {[%emt 0:00:06]} 0-1

[Event "World Junior U20 Open 2018"]
[Site "Gebze"]
[Date "2018.09.08"]
[Round "5.56"]
[White "Petkov, Momchil"]
[Black "Macovei, Andrei"]
[Result "0-1"]
[ECO "E61"]
[WhiteElo "2163"]
[BlackElo "2385"]
[Annotator "NA"]
[PlyCount "76"]
[EventDate "2018.09.05"]
[EventType "swiss"]
[EventCountry "TUR"]
[SourceTitle "playchess.com"]
[Source "ChessBase"]
[SourceQuality "1"]
[TimeControl "40/5400+30:1800+30"]

1. d4 {[%emt 0:00:30]} Nf6 {[%emt 0:01:30]} 2. Bf4 {[%emt 0:00:00]} g6 {[%emt 0:03:30]} 3. e3 {[%emt 0:00:00]} Bg7 {[%emt 0:00:00]} 4. Nf3 {[%emt 0:00:30]} d6 {[%emt 0:01:00]} 5. h3 {[%emt 0:01:30]} O-O {[%emt 0:00:30]} 6. Be2 {[%emt 0:00:00]} b6 {[%emt 0:00:30]} 7. O-O {[%emt 0:01:00]} Bb7 {[%emt 0:00:00]} 8. c4 {[%emt 0:01:30]} Nbd7 {[%emt 0:01:00]} 9. Nc3 {[%emt 0:00:30]} Re8 {[%emt 0:00:30]} 10. Bh2 {[%emt 0:05:30]} e5 {[%emt 0:01:30]} 11. a4 {[%emt 0:04:30]} a5 {[%emt 0:01:30]} 12. Nb5 {[%emt 0:03:30]} Ne4 {[%emt 0:02:30]} 13. Rc1 {[%emt 0:08:30]} f5 {[%emt 0:05:30]} 14. Qb3 {[%emt 0:09:30]} Kh8 {[%emt 0:02:30]} 15. Rfe1 {[%emt 0:02:30]} Nb8 {[%emt 0:11:30]} 16. c5 {[%emt 0:11:30]} Na6 {[%emt 0:07:30]} 17. cxd6 {[%emt 0:02:30]} cxd6 {[%emt 0:00:00]} 18. Nc7 {[%emt 0:13:30]} Nxc7 {[%emt 0:10:00]} 19. Qxb6 {[%emt 0:00:30]} Ne6 {[%emt 0:01:30]} 20. Qxb7 {[%emt 0:00:30]} exd4 {[%emt 0:00:00]} 21. exd4 {[%emt 0:06:30]} Nxd4 {[%emt 0:02:00]} 22. Nxd4 {[%emt 0:07:38]} Bxd4 {[%emt 0:01:30]} 23. Rc7 {[%emt 0:00:39]} Qh4 {[%emt 0:01:30]} 24. Rd1 {[%emt 0:08:08]} Bxf2+ {[%emt 0:01:30]} 25. Kh1 {[%emt 0:02:14]} Rab8 {[%emt 0:03:30]} 26. Qd5 {[%emt 0:01:31]} Bb6 {[%emt 0:00:30]} 27. Bg1 {[%emt 0:02:26]} Ng3+ {[%emt 0:00:30]} 28. Kh2 {[%emt 0:00:30]} Bxg1+ {[%emt 0:00:30]} 29. Rxg1 {[%emt 0:00:16]} Qf4 {[%emt 0:00:30]} 30. Rd1 {[%emt 0:00:56]} Nxe2+ {[%emt 0:02:30]} 31. Kh1 {[%emt 0:00:08]} Ng3+ {[%emt 0:00:00]} 32. Kh2 {[%emt 0:01:20]} Ne4+ {[%emt 0:01:00]} 33. Kg1 {[%emt 0:00:16]} Rxb2 {[%emt 0:00:30]} 34. Qd4+ {[%emt 0:00:40]} Qe5 {[%emt 0:00:00]} 35. Qa7 {[%emt 0:00:08]} Rxg2+ {[%emt 0:02:00]} 36. Kxg2 {[%emt 0:00:49]} Qg3+ {[%emt 0:00:00]} 37. Kf1 {[%emt 0:00:00]} Nd2+ {[%emt 0:00:00]} 38. Rxd2 {[%emt 0:00:13]} Re1# {[%emt 0:00:00]} 0-1

[Event "World Junior U20 Open 2018"]
[Site "Gebze"]
[Date "2018.09.08"]
[Round "5.57"]
[White "Murphy, Conor E"]
[Black "Eren, Ataberk"]
[Result "1-0"]
[ECO "C11"]
[WhiteElo "2357"]
[BlackElo "2180"]
[Annotator "NA"]
[PlyCount "90"]
[EventDate "2018.09.05"]
[EventType "swiss"]
[EventCountry "TUR"]
[SourceTitle "playchess.com"]
[Source "ChessBase"]
[SourceQuality "1"]
[TimeControl "40/5400+30:1800+30"]

1. e4 {[%emt 0:05:30]} e6 {[%emt 0:00:30]} 2. d4 {[%emt 0:00:30]} d5 {[%emt 0:00:30]} 3. Nc3 {[%emt 0:00:30]} Nf6 {[%emt 0:00:00]} 4. e5 {[%emt 0:00:00]} Nfd7 {[%emt 0:00:00]} 5. f4 {[%emt 0:00:00]} c5 {[%emt 0:00:00]} 6. Nf3 {[%emt 0:00:00]} Nc6 {[%emt 0:00:00]} 7. Be3 {[%emt 0:00:00]} Be7 {[%emt 0:00:30]} 8. Qd2 {[%emt 0:00:30]} O-O {[%emt 0:00:00]} 9. dxc5 {[%emt 0:00:30]} Bxc5 {[%emt 0:01:00] C11: French: Classical System: 4 e5 and 4 Bg5 dxe4} (9... Qa5 10. a3 Bxc5 11. O-O-O Rd8 12. Bxc5 Nxc5 13. h4 Bd7 14. h5 h6 15. g4 Be8 16. Qe3 d4 17. Nxd4 Nxd4 18. Rxd4 {½-½ (26) Inarkiev,E (2689)-Volkov,S (2645) St Petersburg 2017}) 10. O-O-O {[%emt 0:03:00]} a6 {[%emt 0:03:30]} 11. Bxc5 {[%emt 0:10:30]} Nxc5 {[%emt 0:00:30]} 12. Kb1 {[%emt 0:08:30]} f5 $146 {[%emt 0:06:00]} ({Predecessor:} 12... b5 13. Nd4 Qb6 14. Nxc6 Qxc6 15. Qd4 Rb8 16. Bd3 b4 17. Ne2 {1-0 (57) Perez,M (2406)-Carraro,D (2128) Buenos Aires 2017}) 13. exf6 {[%emt 0:02:30]} Qxf6 {[%emt 0:00:30]} 14. g3 {[%emt 0:01:30]} Rd8 {[%emt 0:03:30]} 15. Nd4 {[%emt 0:18:30]} Bd7 {[%emt 0:01:30]} 16. Bg2 {[%emt 0:04:30]} Be8 {[%emt 0:13:30]} 17. Qe3 {[%emt 0:12:30]} Nxd4 {[%emt 0:25:30]} 18. Rxd4 {[%emt 0:06:30]} Rac8 {[%emt 0:06:30]} 19. f5 {[%emt 0:05:52]} Qxf5 $16 {[%emt 0:07:30]} 20. Rf1 Qg6 21. Nxd5 exd5 22. Bxd5+ Rxd5 23. Rxd5 Ne4 24. Rdf5 Bd7 25. Qxe4 Re8 26. b3 Bxf5 27. Qxf5 Re1+ 28. Kb2 Rxf1 29. Qxf1 h5 30. Qc4+ Kh8 31. Qc8+ Kh7 32. Qxb7 Qf6+ 33. Ka3 Qe5 34. Qf3 a5 35. Qd3+ g6 36. Qd7+ Kh6 37. Qd2+ g5 38. c4 Qc5+ 39. Ka4 Kg6 40. a3 g4 {[%emt 1:21:00]} 41. Qd3+ {[%emt 1:54:30]} Kh6 {[%emt 0:30:30]} 42. Qd5 {[%emt 0:00:30]} Qf2 {[%emt 0:00:30]} 43. c5 {[%emt 0:00:30]} Qxh2 {[%emt 0:00:30]} 44. Qd6+ {[%emt 0:00:30]} Kg7 {[%emt 0:00:30]} 45. c6 {[%emt 0:00:30]} Qe2 {[%emt 0:00:30]} 1-0